fUST/lending_fUST_20250418
["ID","MTS","AMOUNT","RATE_DAILY","PERIOD"]
[358327354,1744935729310,-13810.60788293,0.00047,120]
[358327355,1744935729340,-464.0,0.00047037,90]
[358327356,1744935729371,-500.0,0.00047053,120]
[358327357,1744935729398,-542.39995384,0.00047123,30]
[358327358,1744935729425,-652.69,0.00047123,21]
[358327359,1744935729452,-200.0,0.00047221,120]
[358327360,1744935729481,-500.0,0.00047253,120]
[358327361,1744935729507,-152.0,0.00047273,90]
[358327362,1744935729535,-151.0,0.000473,116]
[358327363,1744935729563,-652.69,0.00047397,23]
[358327364,1744935729590,-464.0,0.00047432,90]
[358327365,1744935729618,-500.0,0.00047453,120]
[358327366,1744935729647,-200.0,0.00047559,120]
[358327367,1744935729674,-5100.0,0.00047574,10]
[358327368,1744935729700,-500.0,0.00047653,120]
[358327369,1744935729728,-652.69,0.00047671,25]
[358327370,1744935729756,-53070.07,0.000477,30]
[358327371,1744935729783,-566.49912575,0.000478,120]
[358327372,1744935729813,-500.0,0.00047853,120]
[358327373,1744935729839,-25000.0,0.0004787,30]
[358327374,1744935729871,-143385.4,0.000479,30]
[358327375,1744935729897,-663.90534084,0.000479,120]
[358327376,1744935729923,-652.69,0.00047945,27]
[358327377,1744935729953,-195.41,0.00047945,120]
[358327378,1744935729981,-300.0,0.00048,120]
[358327379,1744935730006,-216.9085806,0.00048,30]
[358327380,1744935730033,-1500.00006673,0.00048,60]
[358327381,1744935730060,-2917.53,0.00048,30]
[358327382,1744935730087,-3962.61,0.00048,30]
[358327383,1744935730114,-500.0,0.00048053,120]
[358327384,1744935730140,-861.41,0.000482,30]
[358327385,1744935730168,-652.69,0.00048219,29]
[358327386,1744935730197,-500.0,0.00048253,120]
[358327387,1744935730226,-151.0,0.000483,117]
[358327388,1744935730254,-303431.2,0.00048353,11]
[358327389,1744935730281,-4832.70734181,0.00048398,120]
[358327390,1744935730309,-500.0,0.00048453,120]
[358327391,1744935730337,-652.69,0.00048493,31]
[358327392,1744935730367,-500.0,0.00048653,120]
[358327393,1744935730393,-320.76597589,0.00048658,120]
[358327394,1744935730421,-652.69,0.00048767,33]
[358327395,1744935730448,-1003573.50887168,0.000488,120]
[358327396,1744935730627,-4867.0,0.000488,120]
[358327397,1744935730654,-500.0,0.00048853,120]
[358327398,1744935730682,-167.56272553,0.000489,120]
[358327399,1744935730708,-16401.15,0.00048953,11]
[358327400,1744935730734,-53070.07,0.00049,30]
[358327401,1744935730759,-652.69,0.00049041,35]
[358327402,1744935730786,-500.0,0.00049053,120]
[358327403,1744935730812,-1135.81392003,0.00049218,10]
[358327404,1744935730839,-500.0,0.00049253,120]
[358327405,1744935730872,-151.0,0.000493,118]
[358327406,1744935730900,-652.69,0.00049315,37]
[358327407,1744935730927,-195.41,0.00049315,120]
[358327408,1744935730953,-1000.0,0.00049315,60]
[358327409,1744935730979,-1000.0,0.00049315,60]
[358327410,1744935731004,-1000.0,0.00049315,60]
[358327411,1744935731031,-1000.0,0.00049315,60]
[358327412,1744935731056,-1000.0,0.00049315,60]
[358327413,1744935731081,-1000.0,0.00049315,60]
[358327414,1744935731107,-1000.0,0.00049315,60]
[358327415,1744935731132,-1000.0,0.00049315,60]
[358327416,1744935731157,-1000.0,0.00049315,60]
[358327417,1744935731183,-1000.0,0.00049315,60]
[358327418,1744935731209,-1000.0,0.00049315,60]
[358327419,1744935731235,-1000.0,0.00049315,60]
[358327420,1744935731260,-675.97709847,0.00049315,60]
[358327421,1744935731285,-2500.0,0.00049315,10]
[358327422,1744935731310,-151.0,0.00049315,14]
[358327423,1744935731335,-151.0,0.00049315,14]
[358327424,1744935731360,-151.0,0.00049315,14]
[358327425,1744935731387,-151.0,0.00049315,14]
[358327426,1744935731412,-151.0,0.00049315,14]
[358327427,1744935731438,-151.0,0.00049315,14]
[358327428,1744935731464,-151.0,0.00049315,14]
[358327429,1744935731490,-500.0,0.00049453,120]
[358327430,1744935731516,-175334.09,0.00049553,11]
[358327431,1744935731542,-90774.86,0.00049553,11]
[358327432,1744935731567,-652.69,0.00049589,39]
[358327433,1744935731592,-200.0,0.0004963,80]
[358327434,1744935731618,-500.0,0.00049653,120]
[358327435,1744935731644,-2000.0,0.00049745,10]
[358327436,1744935731670,-2000.0,0.00049745,10]
[358327437,1744935731695,-2000.0,0.00049745,10]
[358327438,1744935731722,-2000.0,0.00049745,10]
[358327439,1744935731747,-2000.0,0.00049745,10]
[358327440,1744935731773,-464.0,0.00049804,120]
[358327441,1744935731800,-500.0,0.00049853,120]
[358327442,1744935731826,-652.69,0.00049863,41]
[358327443,1744935731854,-269.00649422,0.0004989,120]
[358327444,1744935731879,-151.0,0.00049907,30]
[358327445,1744935731906,-20000.0,0.0004999,30]
[358327446,1744935731931,-199.0,0.0005,7]
[358327447,1744935731956,-292.1,0.0005,120]
[358327448,1744935731983,-300.0,0.0005,120]
[358327449,1744935732008,-200.0,0.0005,120]
[358327450,1744935732033,-2231.13868791,0.0005,30]
[358327451,1744935732058,-100000.0,0.0005,120]
[358327452,1744935732084,-485.03453401,0.0005,120]
[358327453,1744935732109,-527.76161409,0.0005,10]
[358327454,1744935732134,-300569.05104514,0.0005,120]
[358327455,1744935732159,-219.3582814,0.0005,20]
[358327456,1744935732184,-568.07670616,0.0005,60]
[358327457,1744935732209,-420.29423865,0.0005,10]
[358327458,1744935732235,-312.61670131,0.0005,10]
[358327459,1744935732262,-12556.6594983,0.0005,10]
[358327460,1744935732290,-160.0,0.0005,10]
[358327461,1744935732318,-839.11004726,0.0005,10]
[358327462,1744935732345,-500.0,0.00050053,120]
[358327463,1744935732371,-200.0,0.00050112,30]
[358327464,1744935732397,-652.69,0.00050136,43]
[358327465,1744935732424,-500.0,0.00050253,120]
[358327466,1744935732450,-151.0,0.000503,119]
[358327467,1744935732477,-19739.35,0.0005033,11]
[358327468,1744935732503,-16682.38,0.0005033,11]
[358327469,1744935732528,-19739.35,0.0005033,11]
[358327470,1744935732553,-151.0,0.00050331,30]
[358327471,1744935732580,-652.69,0.0005041,45]
[358327472,1744935732606,-2000.0,0.00050445,10]
[358327473,1744935732631,-1250.43129741,0.00050445,10]
[358327474,1744935732657,-500.0,0.00050453,120]
[358327475,1744935732683,-708.61353406,0.00050645,10]
[358327476,1744935732708,-2000.0,0.00050645,10]
[358327477,1744935732735,-326.46864102,0.00050645,10]
[358327478,1744935732760,-2000.0,0.00050645,10]
[358327479,1744935732785,-500.0,0.00050653,120]
[358327480,1744935732811,-652.69,0.00050684,47]
[358327481,1744935732836,-195.41,0.00050684,120]
[358327482,1744935732862,-500.0,0.00050853,120]
[358327483,1744935732887,-1436.85,0.00050932,11]
[358327484,1744935732913,-4907.65,0.00050932,11]
[358327485,1744935732940,-4907.65,0.00050932,11]
[358327486,1744935732966,-652.69,0.00050958,49]
[358327487,1744935732992,-861.41,0.00051,30]
[358327488,1744935733018,-2000.0,0.00051,30]
[358327489,1744935733043,-1583.542101,0.00051,120]
[358327490,1744935733068,-3000.0,0.00051,85]
[358327491,1744935733249,-3000.0,0.0005101,85]
[358327492,1744935733278,-3000.0,0.0005102,85]
[358327493,1744935733305,-3000.0,0.0005103,85]
[358327494,1744935733332,-3000.0,0.0005104,85]
[358327495,1744935733360,-3000.0,0.0005105,85]
[358327496,1744935733388,-500.0,0.00051053,120]
[358327497,1744935733416,-3000.0,0.0005106,85]
[358327498,1744935733442,-3000.0,0.0005107,85]
[358327499,1744935733469,-3012.219377,0.0005108,85]
[358327500,1744935733494,-652.69,0.00051232,51]
[358327501,1744935733521,-500.0,0.00051253,120]
[358327502,1744935733547,-151.0,0.000513,120]
[358327503,1744935733573,-500.0,0.00051453,120]
[358327504,1744935733600,-652.78321906,0.00051506,53]
[358327505,1744935733627,-8677.0,0.00051508,10]
[358327506,1744935733654,-5818.97,0.00051553,11]
[358327507,1744935733680,-5818.97,0.00051553,11]
[358327508,1744935733707,-5818.97,0.00051553,11]
[358327509,1744935733735,-152.0,0.0005157,120]
[358327510,1744935733762,-500.0,0.00051653,120]
[358327511,1744935733788,-151.0,0.00051699,120]
[358327512,1744935733814,-332.67,0.000518,120]
[358327513,1744935733841,-500.0,0.00051853,120]
[358327514,1744935733872,-1054.46423224,0.00052,120]
[358327515,1744935733898,-200.0,0.00052,120]
[358327516,1744935733924,-550.4932774,0.00052,10]
[358327517,1744935733953,-1000.0,0.00052,120]
[358327518,1744935733981,-11001.0300169,0.00052,120]
[358327519,1744935734010,-500.0,0.00052053,120]
[358327520,1744935734037,-195.41,0.00052054,120]
[358327521,1744935734064,-500.0,0.00052253,120]
[358327522,1744935734091,-151.0,0.000523,120]
[358327523,1744935734117,-717.13,0.00052303,11]
[358327524,1744935734144,-717.13,0.00052303,11]
[358327525,1744935734170,-200.0,0.0005235,87]
[358327526,1744935734196,-500.0,0.00052453,120]
[358327527,1744935734222,-292.82676293,0.00052603,120]
[358327528,1744935734249,-500.0,0.00052653,120]
[358327529,1744935734276,-500.0,0.00052853,120]
[358327530,1744935734302,-6022.27,0.00052953,11]
[358327531,1744935734328,-6022.27,0.00052953,11]
[358327532,1744935734354,-500.0,0.00053053,120]
[358327533,1744935734381,-500.0,0.00053253,120]
[358327534,1744935734408,-11505.99156597,0.000533,120]
[358327535,1744935734433,-151.0,0.000533,120]
[358327536,1744935734459,-195.54057148,0.00053424,120]
[358327537,1744935734485,-500.0,0.00053453,120]
[358327538,1744935734510,-22713.1,0.00053553,11]
[358327539,1744935734535,-22713.1,0.00053553,11]
[358327540,1744935734562,-500.0,0.00053653,120]
[358327541,1744935734587,-861.41,0.000537,30]
[358327542,1744935734613,-500.0,0.00053853,120]
[358327543,1744935734639,-168.0,0.000539,120]
[358327544,1744935734665,-50000.0,0.0005399,30]
[358327545,1744935734691,-1115.40638771,0.00054,120]
[358327546,1744935734716,-679.99260787,0.00054,120]
[358327547,1744935734742,-200.0,0.00054,120]
[358327548,1744935734767,-3168.37149063,0.00054,120]
[358327549,1744935734793,-500.0,0.00054053,120]
[358327550,1744935734817,-42070.08,0.00054153,11]
[358327551,1744935734843,-500.0,0.00054253,120]
[358327552,1744935734873,-151.0,0.000543,120]
[358327553,1744935734900,-500.0,0.00054453,120]
[358327554,1744935734925,-500.0,0.00054495,7]
[358327555,1744935734953,-500.0,0.00054495,7]
[358327556,1744935734980,-500.0,0.00054495,7]
[358327557,1744935735006,-500.0,0.00054495,7]
[358327558,1744935735031,-500.0,0.00054495,7]
[358327559,1744935735056,-500.0,0.00054495,7]
[358327560,1744935735081,-500.0,0.00054495,7]
[358327561,1744935735109,-500.0,0.00054495,7]
[358327562,1744935735133,-500.0,0.00054495,7]
[358327563,1744935735159,-500.0,0.00054495,7]
[358327564,1744935735185,-500.0,0.00054495,7]
[358327565,1744935735211,-500.0,0.00054495,7]
[358327566,1744935735237,-500.0,0.00054495,7]
[358327567,1744935735262,-500.0,0.00054495,7]
[358327568,1744935735289,-500.0,0.00054495,7]
[358327569,1744935735316,-500.0,0.00054495,7]
[358327570,1744935735342,-500.0,0.00054495,7]
[358327571,1744935735369,-500.0,0.00054495,7]
[358327572,1744935735395,-179.60570421,0.00054495,7]
[358327573,1744935735421,-500.0,0.00054495,7]
[358327574,1744935735448,-500.0,0.00054495,7]
[358327575,1744935735475,-500.0,0.00054495,7]
[358327576,1744935735502,-500.0,0.00054495,7]
[358327577,1744935735528,-500.0,0.00054495,7]
[358327578,1744935735558,-500.0,0.00054495,7]
[358327579,1744935735585,-500.0,0.00054495,7]
[358327580,1744935735612,-500.0,0.00054495,7]
[358327581,1744935735639,-331.0,0.00054495,7]
[358327582,1744935735665,-151.0,0.00054495,7]
[358327583,1744935735691,-151.0,0.00054495,7]
[358327584,1744935735718,-245.0,0.00054495,7]
[358327585,1744935735744,-500.0,0.00054653,120]
[358327586,1744935735927,-500.0,0.0005469,30]
[358327587,1744935735955,-425.27,0.0005476,11]
[358327588,1744935735984,-1000.0,0.00054794,90]
[358327589,1744935736011,-1000.0,0.00054794,90]
[358327590,1744935736039,-1000.0,0.00054794,90]
[358327591,1744935736066,-1000.0,0.00054794,90]
[358327592,1744935736093,-1000.0,0.00054794,90]
[358327593,1744935736120,-1000.0,0.00054794,90]
[358327594,1744935736147,-1000.0,0.00054794,90]
[358327595,1744935736174,-1000.0,0.00054794,90]
[358327596,1744935736200,-1000.0,0.00054794,90]
[358327597,1744935736227,-1000.0,0.00054794,90]
[358327598,1744935736254,-1000.0,0.00054794,90]
[358327599,1744935736290,-1000.0,0.00054794,90]
[358327600,1744935736323,-1000.0,0.00054794,90]
[358327601,1744935736353,-1000.0,0.00054794,90]
[358327602,1744935736380,-1000.0,0.00054794,90]
[358327603,1744935736408,-1000.0,0.00054794,90]
[358327604,1744935736436,-1000.0,0.00054794,90]
[358327605,1744935736464,-1000.0,0.00054794,90]
[358327606,1744935736492,-1000.0,0.00054794,90]
[358327607,1744935736521,-1000.0,0.00054794,90]
[358327608,1744935736549,-1000.0,0.00054794,90]
[358327609,1744935736576,-429.99113959,0.00054794,90]
[358327610,1744935736606,-545.44212672,0.00054795,120]
[358327611,1744935736636,-545.44212672,0.00054795,120]
[358327612,1744935736664,-545.44212672,0.00054795,120]
[358327613,1744935736692,-545.44212672,0.00054795,120]
[358327614,1744935736722,-545.44212672,0.00054795,120]
[358327615,1744935736751,-545.44212672,0.00054795,120]
[358327616,1744935736780,-545.44212672,0.00054795,120]
[358327617,1744935736809,-545.44212672,0.00054795,120]
[358327618,1744935736837,-545.44212672,0.00054795,120]
[358327619,1744935736866,-545.44212672,0.00054795,120]
[358327620,1744935736896,-545.44212672,0.00054795,120]
[358327621,1744935736923,-545.44212672,0.00054795,120]
[358327622,1744935736953,-545.44212672,0.00054795,120]
[358327623,1744935736982,-545.44212672,0.00054795,120]
[358327624,1744935737010,-545.44212672,0.00054795,120]
[358327625,1744935737049,-545.44212672,0.00054795,120]
[358327626,1744935737078,-545.44212672,0.00054795,120]
[358327627,1744935737107,-545.44212672,0.00054795,120]
[358327628,1744935737136,-545.44212672,0.00054795,120]
[358327629,1744935737165,-545.44,0.00054795,120]
[358327630,1744935737193,-1272.69829569,0.00054795,120]
[358327631,1744935737227,-1272.69829569,0.00054795,120]
[358327632,1744935737257,-1272.69829569,0.00054795,120]
[358327633,1744935737286,-1272.69829569,0.00054795,120]
[358327634,1744935737315,-1272.69829569,0.00054795,120]
[358327635,1744935737344,-1272.69829569,0.00054795,120]
[358327636,1744935737375,-1272.69829569,0.00054795,120]
[358327637,1744935737404,-1272.69829569,0.00054795,120]
[358327638,1744935737434,-1272.69829569,0.00054795,120]
[358327639,1744935737462,-1272.69829569,0.00054795,120]
[358327640,1744935737491,-1272.69829569,0.00054795,120]
[358327641,1744935737519,-1272.69829569,0.00054795,120]
[358327642,1744935737546,-1272.69829569,0.00054795,120]
[358327643,1744935737573,-1272.69829569,0.00054795,120]
[358327644,1744935737601,-1272.69829569,0.00054795,120]
[358327645,1744935737628,-1272.69829569,0.00054795,120]
[358327646,1744935737656,-1272.69829569,0.00054795,120]
[358327647,1744935737684,-1272.69829569,0.00054795,120]
[358327648,1744935737712,-1272.69829569,0.00054795,120]
[358327649,1744935737740,-1272.69,0.00054795,120]
[358327650,1744935737769,-277.17174908,0.00054795,120]
[358327651,1744935737796,-277.17174908,0.00054795,120]
[358327652,1744935737824,-277.17174908,0.00054795,120]
[358327653,1744935737854,-277.17174908,0.00054795,120]
[358327654,1744935737881,-277.17174908,0.00054795,120]
[358327655,1744935737907,-277.17174908,0.00054795,120]
[358327656,1744935737934,-277.17174908,0.00054795,120]
[358327657,1744935737961,-277.17174908,0.00054795,120]
[358327658,1744935737988,-277.17174908,0.00054795,120]
[358327659,1744935738012,-277.17174908,0.00054795,120]
[358327660,1744935738040,-277.17174908,0.00054795,120]
[358327661,1744935738066,-277.17174908,0.00054795,120]
[358327662,1744935738092,-277.17174908,0.00054795,120]
[358327663,1744935738121,-277.17174908,0.00054795,120]
[358327664,1744935738148,-277.17174908,0.00054795,120]
[358327665,1744935738176,-277.17174908,0.00054795,120]
[358327666,1744935738203,-277.17174908,0.00054795,120]
[358327667,1744935738233,-277.17174908,0.00054795,120]
[358327668,1744935738261,-277.17174908,0.00054795,120]
[358327669,1744935738289,-277.17,0.00054795,120]
[358327670,1744935738317,-646.73408119,0.00054795,120]
[358327671,1744935738346,-646.73408119,0.00054795,120]
[358327672,1744935738374,-646.73408119,0.00054795,120]
[358327673,1744935738401,-646.73408119,0.00054795,120]
[358327674,1744935738429,-646.73408119,0.00054795,120]
[358327675,1744935738456,-646.73408119,0.00054795,120]
[358327676,1744935738483,-646.73408119,0.00054795,120]
[358327677,1744935738511,-646.73408119,0.00054795,120]
[358327678,1744935738538,-646.73408119,0.00054795,120]
[358327679,1744935738564,-646.73408119,0.00054795,120]
[358327680,1744935738592,-646.73408119,0.00054795,120]
[358327681,1744935738867,-646.73408119,0.00054795,120]
[358327682,1744935738898,-646.73408119,0.00054795,120]
[358327683,1744935738927,-646.73408119,0.00054795,120]
[358327684,1744935738957,-646.73408119,0.00054795,120]
[358327685,1744935738985,-646.73408119,0.00054795,120]
[358327686,1744935739012,-646.73408119,0.00054795,120]
[358327687,1744935739040,-646.73408119,0.00054795,120]
[358327688,1744935739069,-646.73408119,0.00054795,120]
[358327689,1744935739096,-646.73,0.00054795,120]
[358327690,1744935739124,-173.62428092,0.00054795,120]
[358327691,1744935739152,-173.62428092,0.00054795,120]
[358327692,1744935739180,-173.62428092,0.00054795,120]
[358327693,1744935739207,-173.62,0.00054795,120]
[358327694,1744935739237,-162.04932886,0.00054795,120]
[358327695,1744935739266,-162.04932886,0.00054795,120]
[358327696,1744935739294,-162.04932886,0.00054795,120]
[358327697,1744935739321,-162.04932886,0.00054795,120]
[358327698,1744935739349,-162.04932886,0.00054795,120]
[358327699,1744935739382,-162.04932886,0.00054795,120]
[358327700,1744935739409,-162.04932886,0.00054795,120]
[358327701,1744935739436,-162.04932886,0.00054795,120]
[358327702,1744935739466,-162.04932886,0.00054795,120]
[358327703,1744935739493,-162.04,0.00054795,120]
[358327704,1744935739520,-3000.0,0.00054795,14]
[358327705,1744935739547,-10817.32,0.00054795,10]
[358327706,1744935739573,-9014.43,0.00054795,10]
[358327707,1744935739600,-7512.03,0.00054795,10]
[358327708,1744935739916,151.0,0.00049315,14]
[358327709,1744935739959,627.03610124,0.00050445,10]
[358327710,1744935740051,151.0,0.00049315,14]
[358327711,1744935740160,151.0,0.00049315,14]
[358327712,1744935740203,2000.0,0.00050445,10]
[358327713,1744935740287,2000.0,0.00050445,10]
[358327714,1744935740346,2009.96707135,0.00049745,10]
[358327715,1744935740385,151.0,0.00049315,14]
[358327716,1744935740440,1022.86029523,0.00050445,10]
[358327717,1744935740513,2049.5403537,0.00050445,10]
[358327718,1744935740585,151.0,0.00049315,14]
[358327719,1744935740659,151.0,0.00049315,14]
[358327720,1744935740699,2000.0,0.00050445,10]
[358327721,1744935740795,151.0,0.00049315,14]
[358327722,1744935741116,151.0,0.00049315,14]
[358327723,1744935741192,151.0,0.00049315,14]
[358327724,1744935741248,2000.0,0.00050445,10]
[358327725,1744935741289,264.700029,0.00049315,14]
[358327726,1744935741692,6260.02,0.00054795,10]
[358327727,1744935742769,1058.97,0.000438,14]
[358327728,1744935746414,500.0,0.00033648,7]
[358327729,1744935746764,500.0,0.00036361,7]
[358327730,1744935747099,500.0,0.00038139,7]
[358327731,1744935747530,500.0,0.00038294,7]
[358327732,1744935749251,95206.45053574,0.00054794,120]
[358327733,1744935749603,707.89161511,0.00054794,120]
[358327734,1744935750912,5216.68,0.00054795,10]
[358327735,1744935752373,200.0,0.00039057,120]
[358327736,1744935757105,2555.94816293,0.00054794,120]
[358327737,1744935762661,4347.24,0.00054795,10]
[358327738,1744935766857,500.0,0.00037114,7]
[358327739,1744935767252,500.0,0.00037307,7]
[358327740,1744935767654,500.0,0.00038819,7]
[358327741,1744935773222,3622.7,0.00054795,10]
[358327742,1744935779104,1841.57017619,0.00042812,28]
[358327743,1744935784072,1841.57017619,0.00046425,28]
[358327744,1744935784691,175.07196682,0.00050445,10]
[358327745,1744935785075,2000.0,0.00049745,10]
[358327746,1744935785463,3018.91,0.00054795,10]
[358327747,1744935787158,210.0,0.00047121,10]
[358327748,1744935787229,270.0,0.00047668,10]
[358327749,1744935787282,200.03994458,0.00048764,10]
[358327750,1744935788019,330.0,0.00048216,10]
[358327751,1744935792297,500.0,0.00046524,10]
[358327752,1744935792462,500.0,0.00047524,10]
[358327753,1744935792524,283.5360485,0.00054794,120]
[358327754,1744935796672,1000.84,0.000329,30]
[358327755,1744935796958,1000.84,0.000374,30]
[358327756,1744935797264,1000.84,0.000411,30]
[358327757,1744935798507,2515.76,0.00054795,10]
[358327758,1744935799100,155.0,0.00054795,7]
[358327759,1744935805529,151.0,0.00023835,7]
[358327760,1744935805823,151.0,0.000245,7]
[358327761,1744935806107,151.0,0.000249,7]
[358327762,1744935806390,151.0,0.00025,7]
[358327763,1744935806679,151.0,0.00025205,7]
[358327764,1744935806997,151.0,0.00026027,7]
[358327765,1744935807348,151.0,0.00026849,7]
[358327766,1744935807711,151.0,0.00027671,7]
[358327767,1744935818676,-5225.21189622,0.00046525,7]
[358327768,1744935818705,-462.44209163,0.00046525,7]
[358327769,1744935818733,-152.64079712,0.00046525,7]
[358327770,1744935818759,-152.8014709,0.00046525,14]
[358327771,1744935818784,-5872.55606796,0.00046525,7]
[358327772,1744935818811,-13081.77672701,0.00046525,7]
[358327773,1744935818836,-498.0,0.00046525,7]
[358327774,1744935818867,-20722.27063781,0.00046525,7]
[358327775,1744935818895,-2216.09350013,0.00046525,30]
[358327776,1744935818922,-199.7248219,0.00046525,120]
[358327777,1744935818948,-152.54934033,0.00046525,120]
[358327778,1744935818975,-280.61577019,0.00046525,120]
[358327779,1744935819000,-1074.56148552,0.00046525,30]
[358327780,1744935819026,-1767.19981956,0.00046525,30]
[358327781,1744935819053,-2652.88039829,0.00046525,120]
[358327782,1744935819079,-279.17051679,0.00046525,30]
[358327783,1744935819105,-755.33223528,0.00046525,60]
[358327784,1744935819131,-202.33969382,0.00046525,30]
[358327785,1744935819158,-1713.66100525,0.00046525,30]
[358327786,1744935819185,-1574.28719192,0.00046525,120]
[358327787,1744935819212,-671.97639063,0.00046525,120]
[358327788,1744935819238,-302.81626497,0.00046525,120]
[358327789,1744935819265,-307.88216104,0.00046525,120]
[358327790,1744935819291,-1676.35199878,0.00046525,120]
[358327791,1744935819322,-1083.2149318,0.00046525,30]
[358327792,1744935819351,-330.0,0.00046525,120]
[358327793,1744935819376,-1964.14712926,0.00046525,120]
[358327794,1744935819403,-500.0,0.00046525,120]
[358327795,1744935819430,-417.33396834,0.00046525,120]
[358327796,1744935819456,-880.0,0.00046525,90]
[358327797,1744935819483,-736.49771405,0.00046525,32]
[358327798,1744935819509,-157.0455643,0.00046525,120]
[358327799,1744935819536,-1001.0,0.00046525,14]
[358327800,1744935819565,-2196.0193581,0.00046525,120]
[358327801,1744935819592,-1305.41183793,0.00046525,120]
[358327802,1744935819619,-150.0,0.00046525,31]
[358327803,1744935819646,-264.0,0.00046525,31]
[358327804,1744935819673,-239.0,0.00046525,31]
[358327805,1744935819700,-159.0,0.00046525,31]
[358327806,1744935819729,-50162.02375686,0.00046525,30]
[358327807,1744935819756,-17125.80053145,0.00046525,31]
[358327808,1744935819783,-350.0,0.00046525,10]
[358327809,1744935819810,-163034.87276255,0.00046525,60]
[358327810,1744935819836,-34682.01370033,0.00046525,120]
[358327811,1744935819863,-24709.15185965,0.00046525,60]
[358327812,1744935819893,-156.0,0.00046525,30]
[358327813,1744935819920,-2000.0,0.00046525,120]
[358327814,1744935819946,-729.84248068,0.00046525,15]
[358327815,1744935819973,-1242.907473,0.00046525,120]
[358327816,1744935820000,-5220.50111681,0.00046525,120]
[358327817,1744935820026,-838.44,0.00046525,60]
[358327818,1744935820051,-1272.258389,0.00046525,60]
[358327819,1744935820077,-1292.74205848,0.00046525,60]
[358327820,1744935820103,-21347.59307925,0.00046525,120]
[358327821,1744935820128,-300.0,0.00046525,120]
[358327822,1744935820155,-4527.6349813,0.00046525,120]
[358327823,1744935820182,-1059.58733331,0.00046525,120]
[358327824,1744935820208,-12000.0,0.00046525,30]
[358327825,1744935820234,-237.04881498,0.00046525,10]
[358327826,1744935820261,-1079.92736448,0.00046525,10]
[358327827,1744935820288,-200.0,0.00046525,10]
[358327828,1744935820315,-154.45260183,0.00046525,28]
[358327829,1744935820343,-10128.0,0.00046525,30]
[358327830,1744935820370,-714.7477074,0.00046525,9]
[358327831,1744935820396,-150.1,0.00046525,30]
[358327832,1744935820424,-150.2,0.00046525,30]
[358327833,1744935820450,-150.3,0.00046525,30]
[358327834,1744935820477,-1002.47017029,0.00046525,120]
[358327835,1744935820503,-2552.16967973,0.00046525,120]
[358327836,1744935820528,-13265.1767312,0.00046525,32]
[358327837,1744935820554,-440.32396684,0.00046525,60]
[358327838,1744935820579,-5135.80461642,0.00046525,15]
[358327839,1744935820605,-35651.30491388,0.00046525,120]
[358327840,1744935820630,-27588.06345656,0.00046525,7]
[358327841,1744935820657,-383.12035785,0.00046525,14]
[358327842,1744935820682,-176.43782867,0.00046525,30]
[358327843,1744935820708,-6938.0,0.00046525,30]
[358327844,1744935820733,-2186.659376,0.00046525,30]
[358327845,1744935820759,-909.92,0.00046525,30]
[358327846,1744935820785,-100000.0,0.00046525,30]
[358327847,1744935820811,-100000.0,0.00046525,30]
[358327848,1744935820838,-284.60125091,0.00046525,30]
[358327849,1744935821038,-181.34,0.00046525,30]
[358327850,1744935821067,-158.6,0.00046525,30]
[358327851,1744935821094,-500.0,0.00046525,30]
[358327852,1744935821121,-250.0,0.00046525,10]
[358327853,1744935821147,-250.0,0.00046525,10]